[Event "*** Titled Tuesday 3|2 Blitz (Late)"]
[Site "Chess.com"]
[Date "2016.12.06"]
[Round "6"]
[White "DanielNaroditsky"]
[Black "Paralinch"]
[Result "1-0"]
[WhiteElo "2707"]
[BlackElo "2655"]
[TimeControl "180+2"]
[EndTime "18:08:12 PST"]
[Termination "DanielNaroditsky won by checkmate"]

1. d4 {[%clk 0:03:02]} 1... d5 {[%clk 0:03:00.8]} 2. Bf4 {[%clk 0:03:02]} 2...
c5 {[%clk 0:03:01.5]} 3. e3 {[%clk 0:03:01.3]} 3... Nc6 {[%clk 0:03:02.6]} 4.
Bb5 {[%clk 0:02:55.2]} 4... e6 {[%clk 0:02:51.8]} 5. c4 {[%clk 0:02:53.8]} 5...
cxd4 {[%clk 0:02:50.8]} 6. exd4 {[%clk 0:02:52.4]} 6... Nf6 {[%clk 0:02:52.2]}
7. Nf3 {[%clk 0:02:52.3]} 7... Be7 {[%clk 0:02:53.2]} 8. Nc3 {[%clk 0:02:52.1]}
8... O-O {[%clk 0:02:54]} 9. O-O {[%clk 0:02:52.2]} 9... a6 {[%clk 0:02:53.1]}
10. Bxc6 {[%clk 0:02:51.6]} 10... bxc6 {[%clk 0:02:55]} 11. c5 {[%clk 0:02:53]}
11... Nd7 {[%clk 0:02:53.6]} 12. b4 {[%clk 0:02:50.8]} 12... a5 {[%clk
0:02:54.7]} 13. b5 {[%clk 0:02:50.5]} 13... cxb5 {[%clk 0:02:54.7]} 14. Nxb5
{[%clk 0:02:52.4]} 14... Ba6 {[%clk 0:02:43.2]} 15. a4 {[%clk 0:02:52.9]} 15...
Qc8 {[%clk 0:02:38.5]} 16. Qd2 {[%clk 0:02:39.3]} 16... Qc6 {[%clk 0:02:33.8]}
17. Rab1 {[%clk 0:02:40.4]} 17... Rfc8 {[%clk 0:02:35.2]} 18. Rfc1 {[%clk
0:02:39.3]} 18... f6 {[%clk 0:02:30.8]} 19. Qxa5 {[%clk 0:02:32.1]} 19... e5
{[%clk 0:02:17.3]} 20. dxe5 {[%clk 0:02:31.8]} 20... Bxc5 {[%clk 0:02:11.6]} 21.
Nbd4 {[%clk 0:02:24]} 21... Qc7 {[%clk 0:01:49]} 22. Qxc7 {[%clk 0:02:23]} 22...
Rxc7 {[%clk 0:01:50.9]} 23. exf6 {[%clk 0:02:02.1]} 23... Rcc8 {[%clk
0:01:52.1]} 24. fxg7 {[%clk 0:02:03.2]} 24... Bc4 {[%clk 0:01:48.8]} 25. Rb7
{[%clk 0:01:48.8]} 25... Nf6 {[%clk 0:01:42.3]} 26. Nf5 {[%clk 0:01:46.3]} 26...
Ng4 {[%clk 0:01:43.6]} 27. h3 {[%clk 0:01:39.2]} 27... Bxf2+ {[%clk 0:01:36.1]}
28. Kh1 {[%clk 0:01:40.4]} 28... Ba6 {[%clk 0:01:37.7]} 29. Rxc8+ {[%clk
0:01:27.8]} 29... Rxc8 {[%clk 0:01:36.9]} 30. Rd7 {[%clk 0:01:22.4]} 30... Nf6
{[%clk 0:01:28.9]} 31. Nh6# {[%clk 0:01:22.3]} 1-0

[Event "*** Titled Tuesday 3|2 Blitz (Late)"]
[Site "Chess.com"]
[Date "2016.12.06"]
[Round "6"]
[White "FearlessKing64"]
[Black "AllStarShark"]
[Result "0-1"]
[WhiteElo "2008"]
[BlackElo "2330"]
[TimeControl "180+2"]
[EndTime "18:09:18 PST"]
[Termination "AllStarShark won by resignation"]

1. e4 {[%clk 0:03:02]} 1... e5 {[%clk 0:02:57.2]} 2. Nf3 {[%clk 0:03:03]} 2...
Nc6 {[%clk 0:02:57.5]} 3. Bc4 {[%clk 0:03:04.3]} 3... Nf6 {[%clk 0:02:56.8]} 4.
d4 {[%clk 0:03:01.7]} 4... exd4 {[%clk 0:02:55.2]} 5. e5 {[%clk 0:03:03.2]} 5...
d5 {[%clk 0:02:55.6]} 6. Bb5 {[%clk 0:03:03.5]} 6... Ne4 {[%clk 0:02:53.2]} 7.
Nxd4 {[%clk 0:03:04.9]} 7... Bd7 {[%clk 0:02:52.3]} 8. Bxc6 {[%clk 0:03:05.3]}
8... bxc6 {[%clk 0:02:50.6]} 9. Be3 {[%clk 0:03:06.3]} 9... Be7 {[%clk
0:02:46.8]} 10. O-O {[%clk 0:02:49.1]} 10... O-O {[%clk 0:02:40.5]} 11. f3
{[%clk 0:02:50.2]} 11... Nc5 {[%clk 0:02:34.6]} 12. c3 {[%clk 0:02:40]} 12...
Ne6 {[%clk 0:02:35.1]} 13. Nb3 {[%clk 0:02:08.6]} 13... a5 {[%clk 0:02:26.5]}
14. a4 {[%clk 0:02:04.9]} 14... Qb8 {[%clk 0:02:02.1]} 15. f4 {[%clk 0:02:00.6]}
15... Qb7 {[%clk 0:01:27.9]} 16. f5 {[%clk 0:01:58]} 16... Bg5 {[%clk
0:01:25.3]} 17. Bxg5 {[%clk 0:01:34.5]} 17... Nxg5 {[%clk 0:01:25.6]} 18. Kh1
{[%clk 0:01:30.4]} 18... Rab8 {[%clk 0:01:23.3]} 19. Nc5 {[%clk 0:01:24.8]}
19... Qxb2 {[%clk 0:01:19.7]} 20. Nxd7 {[%clk 0:01:23.6]} 20... Qxa1 {[%clk
0:01:20.7]} 21. f6 {[%clk 0:00:31.2]} 21... Ne4 {[%clk 0:01:17.5]} 22. Nxf8
{[%clk 0:00:12.3]} 22... Nf2+ {[%clk 0:01:16.4]} 23. Kg1 {[%clk 0:00:07]} 23...
Nxd1 {[%clk 0:01:14.9]} 0-1

[Event "*** Titled Tuesday 3|2 Blitz (Late)"]
[Site "Chess.com"]
[Date "2016.12.06"]
[Round "6"]
[White "Bigfish1995"]
[Black "Zlatan56"]
[Result "0-1"]
[WhiteElo "2705"]
[BlackElo "2669"]
[TimeControl "180+2"]
[EndTime "18:09:29 PST"]
[Termination "Zlatan56 won by resignation"]

1. e4 {[%clk 0:03:02]} 1... g6 {[%clk 0:03:00.2]} 2. d4 {[%clk 0:03:02.3]} 2...
Bg7 {[%clk 0:02:58.5]} 3. Nf3 {[%clk 0:03:03.3]} 3... d6 {[%clk 0:02:59]} 4. c4
{[%clk 0:03:01.8]} 4... Nf6 {[%clk 0:02:58.7]} 5. Nc3 {[%clk 0:03:02.8]} 5...
O-O {[%clk 0:03:00.2]} 6. Be2 {[%clk 0:03:03.8]} 6... Na6 {[%clk 0:02:59.6]} 7.
O-O {[%clk 0:03:04.1]} 7... e5 {[%clk 0:03:01]} 8. Re1 {[%clk 0:03:04.7]} 8...
Qe8 {[%clk 0:02:51.5]} 9. Bf1 {[%clk 0:03:03.9]} 9... Bg4 {[%clk 0:02:51]} 10.
d5 {[%clk 0:03:03.4]} 10... Nb4 {[%clk 0:02:51.6]} 11. Be2 {[%clk 0:02:57]}
11... a5 {[%clk 0:02:50.8]} 12. Be3 {[%clk 0:02:54.8]} 12... Na6 {[%clk
0:02:46]} 13. Nd2 {[%clk 0:02:55.3]} 13... Bd7 {[%clk 0:02:46.6]} 14. b3 {[%clk
0:02:52.6]} 14... Kh8 {[%clk 0:02:29.2]} 15. Nf1 {[%clk 0:02:36.2]} 15... Ng8
{[%clk 0:02:28.7]} 16. Ng3 {[%clk 0:02:22.9]} 16... f5 {[%clk 0:02:07.1]} 17.
exf5 {[%clk 0:02:21.1]} 17... gxf5 {[%clk 0:02:09]} 18. Nh5 {[%clk 0:02:21.6]}
18... f4 {[%clk 0:02:08.5]} 19. Nxg7 {[%clk 0:02:20.5]} 19... Kxg7 {[%clk
0:02:10.4]} 20. Bc1 {[%clk 0:02:17.6]} 20... Qg6 {[%clk 0:02:09.4]} 21. Bd3
{[%clk 0:02:16.1]} 21... Bf5 {[%clk 0:02:04.5]} 22. Bxf5 {[%clk 0:02:05]} 22...
Rxf5 {[%clk 0:02:06.4]} 23. a3 {[%clk 0:01:56.4]} 23... Nf6 {[%clk 0:01:51.9]}
24. f3 {[%clk 0:01:48.3]} 24... Kh8 {[%clk 0:01:46.9]} 25. Ra2 {[%clk
0:01:39.3]} 25... Rg8 {[%clk 0:01:45.3]} 26. Qc2 {[%clk 0:01:13.7]} 26... Qh5
{[%clk 0:01:27]} 27. Re2 {[%clk 0:01:08]} 27... Rfg5 {[%clk 0:01:25.7]} 28. Rf2
{[%clk 0:00:54.8]} 28... Qh4 {[%clk 0:01:18.6]} 29. Ne2 {[%clk 0:00:30.2]} 29...
Rxg2+ {[%clk 0:01:08.4]} 0-1

[Event "*** Titled Tuesday 3|2 Blitz (Late)"]
[Site "Chess.com"]
[Date "2016.12.06"]
[Round "6"]
[White "jcibarra"]
[Black "amurdercastle"]
[Result "1-0"]
[WhiteElo "2619"]
[BlackElo "2403"]
[TimeControl "180+2"]
[EndTime "18:09:33 PST"]
[Termination "jcibarra won by resignation"]

1. e4 {[%clk 0:03:02]} 1... c6 {[%clk 0:03:00.5]} 2. d4 {[%clk 0:03:02.5]} 2...
d5 {[%clk 0:03:02.4]} 3. e5 {[%clk 0:03:03.6]} 3... Bf5 {[%clk 0:03:03]} 4. h4
{[%clk 0:03:03.9]} 4... h5 {[%clk 0:02:59.2]} 5. Bd3 {[%clk 0:03:04.5]} 5...
Bxd3 {[%clk 0:02:59.1]} 6. Qxd3 {[%clk 0:03:06.4]} 6... e6 {[%clk 0:03:00.4]} 7.
Bg5 {[%clk 0:03:07.2]} 7... Ne7 {[%clk 0:03:00.4]} 8. Nd2 {[%clk 0:03:03.8]}
8... Qb6 {[%clk 0:03:01]} 9. c4 {[%clk 0:03:03.9]} 9... Nd7 {[%clk 0:02:54.3]}
10. Ngf3 {[%clk 0:03:03.6]} 10... f6 {[%clk 0:02:53.4]} 11. exf6 {[%clk
0:03:02.3]} 11... gxf6 {[%clk 0:02:54.1]} 12. Bf4 {[%clk 0:03:02.3]} 12... Nf5
{[%clk 0:02:47.3]} 13. O-O {[%clk 0:03:00.8]} 13... Be7 {[%clk 0:02:33]} 14.
Rfe1 {[%clk 0:03:01.8]} 14... Nf8 {[%clk 0:02:34]} 15. cxd5 {[%clk 0:02:47.6]}
15... cxd5 {[%clk 0:02:35.9]} 16. Rac1 {[%clk 0:02:48.6]} 16... Rg8 {[%clk
0:02:15.8]} 17. Rc7 {[%clk 0:02:46.7]} 17... Ng6 {[%clk 0:02:04.9]} 18. Bh2
{[%clk 0:02:43.3]} 18... Ngxh4 {[%clk 0:01:55.1]} 19. Nxh4 {[%clk 0:02:43.8]}
19... Nxh4 {[%clk 0:01:57]} 20. Qh7 {[%clk 0:02:13.4]} 20... Rxg2+ {[%clk
0:01:49.1]} 21. Kf1 {[%clk 0:02:14.5]} 21... Qxc7 {[%clk 0:00:21.4]} 22. Bxc7
{[%clk 0:02:13.2]} 22... Kd7 {[%clk 0:00:22.7]} 23. Bg3 {[%clk 0:02:11.7]} 23...
Rxg3 {[%clk 0:00:24.1]} 24. fxg3 {[%clk 0:02:12.3]} 24... Nf5 {[%clk 0:00:26]}
25. Nf3 {[%clk 0:02:07.6]} 25... Nxg3+ {[%clk 0:00:26.2]} 26. Kg2 {[%clk
0:02:07.4]} 26... Nf5 {[%clk 0:00:25.7]} 27. Kh3 {[%clk 0:02:05.2]} 27... Rf8
{[%clk 0:00:21.4]} 28. Rg1 {[%clk 0:01:59.2]} 28... Kd6 {[%clk 0:00:19.7]} 29.
Rg8 {[%clk 0:01:59.1]} 29... Rxg8 {[%clk 0:00:17]} 30. Qxg8 {[%clk 0:02:01]}
30... Kd7 {[%clk 0:00:15.6]} 31. Qb8 {[%clk 0:02:00.5]} 31... Kc6 {[%clk
0:00:16.5]} 32. Qc8+ {[%clk 0:01:59.7]} 32... Kd6 {[%clk 0:00:16.3]} 33. Qxb7
{[%clk 0:02:01]} 33... e5 {[%clk 0:00:17.4]} 34. Qa6+ {[%clk 0:02:00.7]} 34...
Kd7 {[%clk 0:00:17.9]} 35. dxe5 {[%clk 0:02:02.1]} 35... d4 {[%clk 0:00:15.5]}
36. exf6 {[%clk 0:02:02.2]} 36... Bc5 {[%clk 0:00:16.9]} 37. Ne5+ {[%clk
0:02:01.8]} 37... Kd8 {[%clk 0:00:14.3]} 38. Qc6 {[%clk 0:01:59.3]} 1-0

[Event "*** Titled Tuesday 3|2 Blitz (Late)"]
[Site "Chess.com"]
[Date "2016.12.06"]
[Round "6"]
[White "AlexanderL"]
[Black "oskariot"]
[Result "1/2-1/2"]
[WhiteElo "2578"]
[BlackElo "2410"]
[TimeControl "180+2"]
[EndTime "18:09:39 PST"]
[Termination "Game drawn by agreement"]

1. d4 {[%clk 0:03:02]} 1... Nf6 {[%clk 0:03:00.9]} 2. c4 {[%clk 0:03:02.6]} 2...
c5 {[%clk 0:03:02.1]} 3. d5 {[%clk 0:03:03.1]} 3... b5 {[%clk 0:03:03.5]} 4. Qc2
{[%clk 0:03:02.1]} 4... bxc4 {[%clk 0:03:03.9]} 5. e4 {[%clk 0:03:02]} 5... d6
{[%clk 0:03:05.3]} 6. Bxc4 {[%clk 0:03:02.4]} 6... g6 {[%clk 0:03:06.4]} 7. Nc3
{[%clk 0:03:03]} 7... Bg7 {[%clk 0:03:07.5]} 8. h3 {[%clk 0:03:03.1]} 8... O-O
{[%clk 0:03:08.4]} 9. Nf3 {[%clk 0:03:04.3]} 9... Ba6 {[%clk 0:03:09.7]} 10.
Bxa6 {[%clk 0:03:04]} 10... Nxa6 {[%clk 0:03:10.3]} 11. O-O {[%clk 0:03:05]}
11... Nd7 {[%clk 0:03:10.8]} 12. Bf4 {[%clk 0:02:57.5]} 12... Qb6 {[%clk
0:02:37.8]} 13. Rab1 {[%clk 0:02:57.4]} 13... Nc7 {[%clk 0:02:33.4]} 14. Rfc1
{[%clk 0:02:57.5]} 14... Nb5 {[%clk 0:02:24]} 15. Nxb5 {[%clk 0:02:57.3]} 15...
Qxb5 {[%clk 0:02:24.7]} 16. Nd2 {[%clk 0:02:58.4]} 16... Rfb8 {[%clk 0:02:20.1]}
17. b3 {[%clk 0:02:56.3]} 17... Ne5 {[%clk 0:02:14.1]} 18. Nc4 {[%clk
0:02:53.7]} 18... Nxc4 {[%clk 0:02:08.2]} 19. bxc4 {[%clk 0:02:55.6]} 19... Qa6
{[%clk 0:02:03.5]} 20. Rb3 {[%clk 0:02:55.9]} 20... Rxb3 {[%clk 0:01:51.3]} 21.
axb3 {[%clk 0:02:56.3]} 21... Qa3 {[%clk 0:01:39.3]} 22. Rb1 {[%clk 0:02:53.3]}
22... a5 {[%clk 0:01:37.2]} 23. Bc1 {[%clk 0:02:51]} 23... Qb4 {[%clk
0:01:37.7]} 24. Bd2 {[%clk 0:02:51.8]} 24... Qa3 {[%clk 0:01:38.4]} 25. Bc3
{[%clk 0:02:01]} 25... Bxc3 {[%clk 0:01:31]} 26. Qxc3 {[%clk 0:02:02.9]} 26...
Qb4 {[%clk 0:01:26.6]} 27. Qd3 {[%clk 0:01:55.8]} 27... Rb8 {[%clk 0:01:24.7]}
28. Ra1 {[%clk 0:01:35.8]} 28... Qxb3 {[%clk 0:01:25]} 29. Qxb3 {[%clk
0:01:36.8]} 29... Rxb3 {[%clk 0:01:25.5]} 30. Rxa5 {[%clk 0:01:38.7]} 30... Rb1+
{[%clk 0:01:23.3]} 31. Kh2 {[%clk 0:01:39.5]} 31... Rc1 {[%clk 0:01:24.7]} 32.
e5 {[%clk 0:01:38.9]} 32... Rxc4 {[%clk 0:01:24.5]} 33. exd6 {[%clk 0:01:40.2]}
33... exd6 {[%clk 0:01:25.4]} 34. Ra6 {[%clk 0:01:41.6]} 34... Rd4 {[%clk
0:01:25.4]} 35. Rxd6 {[%clk 0:01:42.6]} 35... c4 {[%clk 0:01:26.5]} 36. Kg3
{[%clk 0:01:39.6]} 36... c3 {[%clk 0:01:19.5]} 37. Rc6 {[%clk 0:01:39.3]} 37...
Rxd5 {[%clk 0:01:19.9]} 38. Rxc3 {[%clk 0:01:40.3]} 38... Kg7 {[%clk 0:01:20.3]}
39. Rc7 {[%clk 0:01:32.7]} 39... h5 {[%clk 0:01:20.9]} 40. Kh2 {[%clk
0:01:31.1]} 40... Rd3 {[%clk 0:01:21.5]} 41. g3 {[%clk 0:01:31.7]} 41... Kf6
{[%clk 0:01:21.3]} 42. Kg2 {[%clk 0:01:32.9]} 42... Rb3 {[%clk 0:01:22.5]} 43.
Rc6+ {[%clk 0:01:33.2]} 43... Kg7 {[%clk 0:01:23.5]} 44. Rc4 {[%clk 0:01:34.2]}
44... Rd3 {[%clk 0:01:24]} 45. Re4 {[%clk 0:01:34.4]} 45... Rc3 {[%clk
0:01:24.7]} 46. h4 {[%clk 0:01:34.1]} 46... Rb3 {[%clk 0:01:25.4]} 47. f3 {[%clk
0:01:35.4]} 47... Rc3 {[%clk 0:01:26.3]} 1/2-1/2

[Event "*** Titled Tuesday 3|2 Blitz (Late)"]
[Site "Chess.com"]
[Date "2016.12.06"]
[Round "6"]
[White "MaestroASK"]
[Black "Sethu0025"]
[Result "1-0"]
[WhiteElo "2469"]
[BlackElo "2602"]
[TimeControl "180+2"]
[EndTime "18:09:51 PST"]
[Termination "MaestroASK won by resignation"]

1. g3 {[%clk 0:03:01.9]} 1... d5 {[%clk 0:03:00.4]} 2. d3 {[%clk 0:03:02.4]}
2... e5 {[%clk 0:03:01.2]} 3. e4 {[%clk 0:03:03.1]} 3... dxe4 {[%clk 0:03:01.3]}
4. dxe4 {[%clk 0:03:03.8]} 4... Qxd1+ {[%clk 0:03:02.1]} 5. Kxd1 {[%clk
0:03:05.2]} 5... Nf6 {[%clk 0:03:03.8]} 6. f3 {[%clk 0:03:05.6]} 6... Nc6 {[%clk
0:03:03.6]} 7. Bh3 {[%clk 0:03:06.2]} 7... Bxh3 {[%clk 0:03:02.1]} 8. Nxh3
{[%clk 0:03:06.7]} 8... O-O-O+ {[%clk 0:03:03]} 9. Nd2 {[%clk 0:03:07.2]} 9...
Bc5 {[%clk 0:03:00.1]} 10. c3 {[%clk 0:03:06.9]} 10... Rd7 {[%clk 0:03:00.9]}
11. Ke2 {[%clk 0:03:07.1]} 11... Rhd8 {[%clk 0:02:59.2]} 12. b4 {[%clk
0:03:07.5]} 12... Bf8 {[%clk 0:02:56.7]} 13. Nf2 {[%clk 0:03:02]} 13... b5
{[%clk 0:02:45.3]} 14. a4 {[%clk 0:03:01.2]} 14... a6 {[%clk 0:02:45]} 15. axb5
{[%clk 0:03:01.5]} 15... axb5 {[%clk 0:02:45.8]} 16. Nb3 {[%clk 0:02:58.9]}
16... Kb7 {[%clk 0:02:45.5]} 17. Be3 {[%clk 0:02:57.7]} 17... Rb8 {[%clk
0:02:26.3]} 18. Nd3 {[%clk 0:02:50.5]} 18... Kc8 {[%clk 0:02:25.8]} 19. Ra6
{[%clk 0:02:47.1]} 19... Rd6 {[%clk 0:02:16.6]} 20. Bc5 {[%clk 0:02:45.8]} 20...
Nd4+ {[%clk 0:02:08]} 21. cxd4 {[%clk 0:02:44.9]} 21... Rxa6 {[%clk 0:02:08.5]}
22. Bxf8 {[%clk 0:02:45.3]} 22... Ra3 {[%clk 0:02:00]} 23. Nd2 {[%clk
0:02:36.3]} 23... exd4 {[%clk 0:01:57.4]} 24. Bxg7 {[%clk 0:02:36.2]} 24... Ne8
{[%clk 0:01:54.1]} 25. Bxd4 {[%clk 0:02:33.4]} 25... Nd6 {[%clk 0:01:55]} 26.
Rc1 {[%clk 0:02:31.9]} 26... Ra2 {[%clk 0:01:53.6]} 27. Ke3 {[%clk 0:02:30]}
27... Rba8 {[%clk 0:01:51.9]} 28. Be5 {[%clk 0:02:26.8]} 28... Kd7 {[%clk
0:01:51]} 29. Bxd6 {[%clk 0:02:23.2]} 29... cxd6 {[%clk 0:01:51.5]} 30. f4
{[%clk 0:02:23.1]} 30... R8a3 {[%clk 0:01:46]} 31. h4 {[%clk 0:02:22.8]} 31...
h5 {[%clk 0:01:46.1]} 32. g4 {[%clk 0:02:12.3]} 32... hxg4 {[%clk 0:01:45.2]}
33. h5 {[%clk 0:02:07.1]} 33... Rb2 {[%clk 0:01:43.6]} 34. h6 {[%clk 0:02:05.5]}
34... Rba2 {[%clk 0:01:35.2]} 35. Rg1 {[%clk 0:02:02.9]} 35... Ra8 {[%clk
0:01:31.2]} 36. Rxg4 {[%clk 0:02:02.4]} 36... Rh8 {[%clk 0:01:31.7]} 37. Rh4
{[%clk 0:02:03]} 37... Raa8 {[%clk 0:01:30.5]} 38. Nf3 {[%clk 0:02:03.1]} 38...
Rag8 {[%clk 0:01:28.6]} 39. Nd4 {[%clk 0:01:59.2]} 39... Rg3+ {[%clk 0:01:29.1]}
40. Ke2 {[%clk 0:01:59.8]} 40... Rg6 {[%clk 0:01:29.6]} 41. Nf5 {[%clk
0:01:59.9]} 41... Rg2+ {[%clk 0:01:22.6]} 42. Ke3 {[%clk 0:01:58]} 42... Rg6
{[%clk 0:01:22.8]} 43. Kd4 {[%clk 0:01:57.9]} 43... Rh7 {[%clk 0:01:22.3]} 44.
Rh1 {[%clk 0:01:57.4]} 44... Rg2 {[%clk 0:01:18.9]} 45. Ra1 {[%clk 0:01:57.1]}
45... Rh8 {[%clk 0:01:18.4]} 46. Ra7+ {[%clk 0:01:55.6]} 46... Ke6 {[%clk
0:01:19]} 47. Re7+ {[%clk 0:01:51.9]} 47... Kf6 {[%clk 0:01:19.4]} 48. Rd7
{[%clk 0:01:51.7]} 48... Kg6 {[%clk 0:01:06.5]} 49. Nh4+ {[%clk 0:01:51.9]} 1-0

[Event "*** Titled Tuesday 3|2 Blitz (Late)"]
[Site "Chess.com"]
[Date "2016.12.06"]
[Round "6"]
[White "Apocalyps999"]
[Black "Buffy7"]
[Result "0-1"]
[WhiteElo "2409"]
[BlackElo "2475"]
[TimeControl "180+2"]
[EndTime "18:10:03 PST"]
[Termination "Buffy7 won by resignation"]

1. e4 {[%clk 0:03:02]} 1... c5 {[%clk 0:02:59.9]} 2. Nf3 {[%clk 0:03:02]} 2...
d6 {[%clk 0:03:00.7]} 3. d4 {[%clk 0:03:03.6]} 3... cxd4 {[%clk 0:03:02.6]} 4.
Nxd4 {[%clk 0:03:04.7]} 4... Nf6 {[%clk 0:03:04.3]} 5. Nc3 {[%clk 0:03:06.2]}
5... Nc6 {[%clk 0:03:05.9]} 6. Bg5 {[%clk 0:03:07]} 6... e6 {[%clk 0:03:05.7]}
7. Qd2 {[%clk 0:03:07.1]} 7... Bd7 {[%clk 0:03:06.9]} 8. O-O-O {[%clk
0:03:07.8]} 8... a6 {[%clk 0:03:07.7]} 9. f4 {[%clk 0:03:08.4]} 9... b5 {[%clk
0:03:04.3]} 10. e5 {[%clk 0:02:52.1]} 10... dxe5 {[%clk 0:02:57.5]} 11. Nxc6
{[%clk 0:02:43]} 11... Bxc6 {[%clk 0:02:58.5]} 12. Qxd8+ {[%clk 0:02:40.7]}
12... Rxd8 {[%clk 0:03:00.4]} 13. Rxd8+ {[%clk 0:02:40.6]} 13... Kxd8 {[%clk
0:03:02.3]} 14. fxe5 {[%clk 0:02:41.4]} 14... h6 {[%clk 0:03:04]} 15. Bh4 {[%clk
0:02:41.7]} 15... g5 {[%clk 0:03:05.1]} 16. Bxg5 {[%clk 0:02:10.4]} 16... hxg5
{[%clk 0:03:04.6]} 17. exf6 {[%clk 0:02:11.4]} 17... Bd6 {[%clk 0:02:56.9]} 18.
a4 {[%clk 0:02:12]} 18... bxa4 {[%clk 0:02:47.9]} 19. Bxa6 {[%clk 0:02:11.4]}
19... Bf4+ {[%clk 0:02:36.2]} 20. Kb1 {[%clk 0:02:10.3]} 20... Bxg2 {[%clk
0:02:37.2]} 21. Rd1+ {[%clk 0:01:21.3]} 21... Kc7 {[%clk 0:02:37.5]} 22. Nxa4
{[%clk 0:01:21.9]} 22... Rxh2 {[%clk 0:02:31.4]} 23. Nc5 {[%clk 0:01:20.3]}
23... Bd6 {[%clk 0:02:24.6]} 24. Nd3 {[%clk 0:01:00]} 24... g4 {[%clk
0:02:19.1]} 25. c4 {[%clk 0:01:00.4]} 25... Be4 {[%clk 0:02:18.1]} 26. Kc1
{[%clk 0:00:56.9]} 26... g3 {[%clk 0:02:05.4]} 27. c5 {[%clk 0:00:54.4]} 27...
Bxc5 {[%clk 0:02:06.6]} 28. Nxc5 {[%clk 0:00:39.8]} 28... Rc2+ {[%clk
0:02:07.5]} 29. Kb1 {[%clk 0:00:40.6]} 29... Rxc5+ {[%clk 0:02:09]} 30. Bd3
{[%clk 0:00:38]} 30... Bxd3+ {[%clk 0:01:44.7]} 31. Rxd3 {[%clk 0:00:38]} 31...
Rg5 {[%clk 0:01:46.3]} 32. Rd1 {[%clk 0:00:39.4]} 32... g2 {[%clk 0:01:47.7]}
33. Rg1 {[%clk 0:00:40.8]} 33... Kd6 {[%clk 0:01:49.4]} 34. b4 {[%clk
0:00:33.7]} 34... Ke5 {[%clk 0:01:42.3]} 35. Kb2 {[%clk 0:00:29.7]} 35... Kf4
{[%clk 0:01:42.4]} 36. Kb3 {[%clk 0:00:29.2]} 36... Kf3 {[%clk 0:01:43.7]} 37.
Kc4 {[%clk 0:00:17.6]} 37... Kf2 {[%clk 0:01:44.2]} 38. Rc1 {[%clk 0:00:17.8]}
38... g1=Q {[%clk 0:01:45.4]} 39. Rxg1 {[%clk 0:00:18.4]} 39... Rxg1 {[%clk
0:01:43.4]} 40. Kc5 {[%clk 0:00:16.6]} 40... Rb1 {[%clk 0:01:38.6]} 0-1

[Event "*** Titled Tuesday 3|2 Blitz (Late)"]
[Site "Chess.com"]
[Date "2016.12.06"]
[Round "6"]
[White "Astaneh"]
[Black "MFBerna"]
[Result "1-0"]
[WhiteElo "2454"]
[BlackElo "2194"]
[TimeControl "180+2"]
[EndTime "18:10:35 PST"]
[Termination "Astaneh won on time"]

1. d4 {[%clk 0:03:02]} 1... d5 {[%clk 0:03:00]} 2. Nf3 {[%clk 0:03:03.9]} 2...
c6 {[%clk 0:02:56.8]} 3. c4 {[%clk 0:03:04.9]} 3... Nf6 {[%clk 0:02:56]} 4. Nc3
{[%clk 0:03:05.5]} 4... dxc4 {[%clk 0:02:55.3]} 5. e3 {[%clk 0:03:06.6]} 5...
Bf5 {[%clk 0:02:54.2]} 6. Bxc4 {[%clk 0:03:06.9]} 6... e6 {[%clk 0:02:55.3]} 7.
O-O {[%clk 0:03:08.5]} 7... Nbd7 {[%clk 0:02:43.9]} 8. Re1 {[%clk 0:03:09.8]}
8... Bb4 {[%clk 0:02:40.1]} 9. e4 {[%clk 0:03:08.1]} 9... Bxc3 {[%clk
0:02:38.6]} 10. bxc3 {[%clk 0:03:10]} 10... Nxe4 {[%clk 0:02:31.6]} 11. Ba3
{[%clk 0:03:11.6]} 11... Qc7 {[%clk 0:01:59.4]} 12. Qb3 {[%clk 0:02:18.3]} 12...
O-O-O {[%clk 0:01:46]} 13. Nh4 {[%clk 0:02:06.5]} 13... Nd2 {[%clk 0:01:37.7]}
14. Qb4 {[%clk 0:01:51.4]} 14... Nxc4 {[%clk 0:00:56.8]} 15. Qxc4 {[%clk
0:01:52.1]} 15... Nb6 {[%clk 0:00:53.3]} 16. Qb3 {[%clk 0:01:48.2]} 16... Bd3
{[%clk 0:00:46]} 17. Bc5 {[%clk 0:01:48.3]} 17... Ba6 {[%clk 0:00:28.4]} 18. Nf3
{[%clk 0:01:46.6]} 18... Kb8 {[%clk 0:00:25.9]} 19. a4 {[%clk 0:01:42.8]} 19...
Nc4 {[%clk 0:00:25.5]} 20. Ne5 {[%clk 0:01:39.6]} 20... Nxe5 {[%clk 0:00:24.4]}
21. dxe5 {[%clk 0:01:40.9]} 21... Rd3 {[%clk 0:00:17.6]} 22. Bd6 {[%clk
0:01:27.7]} 22... Rxd6 {[%clk 0:00:18.5]} 23. exd6 {[%clk 0:01:29.6]} 23... Qxd6
{[%clk 0:00:20.4]} 24. Red1 {[%clk 0:01:26.9]} 24... Qc5 {[%clk 0:00:17]} 25.
Rd7 {[%clk 0:01:27.1]} 25... Rc8 {[%clk 0:00:13.1]} 26. Rxf7 {[%clk 0:01:17.1]}
26... b6 {[%clk 0:00:13.8]} 27. Rxg7 {[%clk 0:01:16.6]} 27... Bc4 {[%clk
0:00:13.6]} 28. Qd1 {[%clk 0:01:15.6]} 28... Rf8 {[%clk 0:00:13.3]} 29. Qe1
{[%clk 0:01:10]} 29... Bd5 {[%clk 0:00:11.5]} 30. a5 {[%clk 0:01:04.4]} 30... b5
{[%clk 0:00:08]} 31. h4 {[%clk 0:01:05.8]} 31... Rf5 {[%clk 0:00:08.2]} 32. g4
{[%clk 0:01:04.7]} 32... Rf3 {[%clk 0:00:06.2]} 33. Qe5+ {[%clk 0:00:45.6]}
33... Ka8 {[%clk 0:00:02.5]} 34. Rg8+ {[%clk 0:00:47.2]} 1-0